[Event "Karel Janecek Open 2024"]
[Site "Prague"]
[Date "2024.03.02"]
[Round "4.16"]
[White "Sorm, Daniel"]
[Black "Csonka, Balasz"]
[Result "0-1"]
[ECO "D35"]
[WhiteElo "2279"]
[BlackElo "2480"]
[Annotator "TA"]
[PlyCount "92"]
[EventDate "2024.02.22"]
[EventType "swiss"]
[EventCountry "CZE"]
[SourceTitle "playchess.com"]
[Source "ChessBase"]
[SourceQuality "1"]
[TimeControl "40/5400+30:1800+30"]

{[%evp 9,92,10,5,0,13,10,20,0,0,0,0,0,0,-7,-1,-2,-4,-27,-18,-15,-20,-9,-11,-21,-12,-19,-25,-12,0,0,0,0,0,0,0,0,0,-91,-55,-85,-94,-104,-101,-94,-97,-100,-90,-90,-88,-92,-104,-114,-121,-377,-134,-124,-132,-121,-126,-125,-102,-166,-155,-213,-197,-310,-277,-636,-620,-1649,-1585,-1225,-1206,-1476,-1180,-1416,-1285,-4670,-2322,-5694,-5689,-5560,-5045,-4626,-4562]} 1. d4 {[%emt 0:00:04]} Nf6 {[%emt 0:00:07]} 2. c4 {[%emt 0:00:10]} e6 {[%emt 0:00:05]} 3. Nc3 {[%emt 0:00:05]} d5 {[%emt 0:00:06]} 4. cxd5 {[%emt 0:00:50]} Nxd5 {[%emt 0:00:09]} 5. e3 {[%emt 0:04:27][%cal Be2e3,Be3d4][%mdl 32]} c5 {[%emt 0:01:19]} 6. Bd3 {[%emt 0:00:33]} cxd4 {[%emt 0:08:51]} 7. exd4 {[%emt 0:00:12]} g6 {[%emt 0:00:04]} 8. h4 {[%emt 0:07:34] The position is equal.} Bg7 {[%emt 0:21:30]} 9. h5 {[%emt 0:00:53]} Nc6 {[%emt 0:00:39]} 10. Nf3 {[%emt 0:02:45]} Qb6 {[%emt 0:06:38]} 11. h6 {[%emt 0:15:20]} Bxd4 {[%emt 0:09:38]} 12. Nxd5 {[%emt 0:01:18]} exd5 {[%emt 0:01:09]} 13. Qe2+ {[%emt 0:06:44]} Be6 {[%emt 0:01:19]} 14. Nxd4 {[%emt 0:00:10]} Qxd4 {[%emt 0:01:14]} 15. O-O {[%emt 0:01:39]} O-O {[%emt 0:02:10]} 16. Be3 {[%emt 0:03:43]} Qg4 {[%emt 0:06:24]} 17. f3 {[%emt 0:03:46]} (17. Qxg4 {simplifies} Bxg4 18. Rfe1 Rac8 19. f3) 17... Qh4 {[%emt 0:01:39]} 18. Qd2 {[%emt 0:01:55]} a6 {[%emt 0:05:22] Inhibits Bb5.} (18... Qb4 {simplifies} 19. Rfd1 Qxd2 20. Rxd2 f6) 19. a3 {[%emt 0:09:07]} Rfe8 {[%emt 0:08:45]} 20. b4 {[%emt 0:05:25]} Ne5 {[%emt 0:04:24]} 21. Be2 {[%emt 0:04:11]} f6 {[%emt 0:07:09] Repels Bg5} 22. Bf2 {[%emt 0:10:21]} Qh5 {[%emt 0:00:31]} 23. g4 {[%emt 0:11:28] [#]} (23. Rfe1 $11 {keeps the balance.}) 23... Nxg4 $1 {[%emt 0:04:19]} 24. fxg4 {[%emt 0:05:57]} Bxg4 {[%emt 0:00:06]} 25. Bd1 {[%emt 0:01:31]} Bxd1 {[%emt 0:03:26]} 26. Qxd1 {[%emt 0:01:07]} (26. Raxd1 $2 {perishes.} Qg4+ $19) 26... Qg5+ {[%emt 0:00:35]} 27. Kh2 {[%emt 0:00:22]} Qxh6+ {[%emt 0:00:49]} 28. Kg2 {[%emt 0:00:06]} Qg5+ {[%emt 0:00:07]} 29. Bg3 {[%emt 0:00:28]} Re3 {[%emt 0:00:23] Inhibits Qf3.} 30. Rf3 {[%emt 0:00:16]} Rae8 {[%emt 0:00:09]} 31. Qf1 {[%emt 0:01:21][%mdl 8192]} (31. Ra2 $17) 31... h5 $2 {[%emt 0:04:33]} (31... Re2+ $19 {and Black stays clearly on top.} 32. Rf2 Qg4 33. Rxe2 Rxe2+ 34. Kh1 Rc2) 32. Rxe3 $17 {[%emt 0:00:48]} Rxe3 $40 {[%emt 0:00:05][%mdl 128] Black wants a kill.} 33. Qf4 {[%emt 0:00:14]} Qxf4 {[%emt 0:00:21]} 34. Bxf4 {[%emt 0:00:04][%mdl 4096] Endgame. KRB-KR} Rd3 {[%emt 0:00:43]} 35. Rc1 {[%emt 0:01:00]} (35. Re1 $17 {was necessary.}) 35... g5 $1 $19 {[%emt 0:01:15]} 36. Rc8+ {[%emt 0:00:56]} (36. Bb8 $17 {is a better defense.}) 36... Kf7 {[%emt 0:00:05]} 37. Rc7+ {[%emt 0:00:03]} (37. Bb8 $142) 37... Ke6 {[%emt 0:00:57]} 38. Rxb7 $2 {[%emt 0:00:36]} (38. Bh2) 38... gxf4 {[%emt 0:00:51] KR-KR. Black is clearly winning.} 39. Rb6+ {[%emt 0:00:05]} Kf5 {[%emt 0:00:27]} 40. Rxa6 {[%emt 0:00:04]} Kg4 {[%emt 0:01:34]} 41. Rxf6 {[%emt 0:03:03]} Rxa3 {[%emt 0:05:44] [#] Hoping for ...Ra2+.} 42. Rg6+ {[%emt 0:09:17]} Kf5 {[%emt 0:00:07]} 43. Rh6 {[%emt 0:00:04]} Rb3 {[%emt 0:01:36]} 44. Rxh5+ {[%emt 0:00:13]} Ke4 {[%emt 0:00:06]} 45. Rh8 {[%emt 0:00:32]} Rb2+ {[%emt 0:01:13]} (45... Rxb4 46. Re8+ Kd3 47. Kf3 $17) 46. Kf1 {[%emt 0:01:39]} Rxb4 {[%emt 0:00:41] Weighted Error Value: White=0.59/Black=0.21 (precise) .  Loses game:     	White=1     	---        Missed win:     	---       	Black=1      Mistake:       	White=5     	---        Inaccurate:     	White=2     	Black=1      OK:         	White=16    	Black=14     Best:        	White=1     	Black=4      Strong:       	---       	Black=1} 0-1

[Event "Karel Janecek Open 2024"]
[Site "Prague"]
[Date "2024.03.02"]
[Round "4.17"]
[White "Smietanska, Wiktoria"]
[Black "Belenkaya, Dina"]
[Result "0-1"]
[ECO "B12"]
[WhiteElo "1968"]
[BlackElo "2202"]
[Annotator "RC"]
[PlyCount "63"]
[EventDate "2024.02.22"]
[EventType "swiss"]
[EventCountry "CZE"]
[SourceTitle "playchess.com"]
[Source "ChessBase"]
[SourceQuality "1"]
[TimeControl "40/5400+30:1800+30"]

1. e4 {[%emt 0:00:10]} c6 {[%emt 0:01:06]} 2. d4 {[%emt 0:00:07]} d5 {[%emt 0:00:09]} 3. Nd2 {[%emt 0:00:07]} g6 {[%emt 0:03:04]} 4. e5 {[%emt 0:03:30]} c5 {[%emt 0:07:05]} 5. c3 {[%emt 0:02:47]} Nc6 {[%emt 0:07:20]} 6. Ndf3 {[%emt 0:06:13]} Bg7 {[%emt 0:03:33]} 7. Bd3 {[%emt 0:02:22]} cxd4 {[%emt 0:04:34]} 8. cxd4 {[%emt 0:00:16]} Nh6 {[%emt 0:03:03]} 9. h3 {[%emt 0:10:19]} Qa5+ {[%emt 0:04:26]} 10. Bd2 {[%emt 0:04:23]} Qb6 {[%emt 0:00:04]} 11. Bc3 {[%emt 0:01:39]} O-O {[%emt 0:04:34]} 12. Ne2 {[%emt 0:01:14]} f6 {[%emt 0:02:24]} 13. exf6 {[%emt 0:03:44]} Rxf6 {[%emt 0:00:36]} 14. Qb3 {[%emt 0:08:49]} Qxb3 {[%emt 0:08:01]} 15. axb3 {[%emt 0:00:07]} Bf5 {[%emt 0:00:31]} 16. Kd2 {[%emt 0:06:36]} Be4 {[%emt 0:05:07]} 17. Bxe4 {[%emt 0:11:37]} dxe4 {[%emt 0:00:02]} 18. Ng5 {[%emt 0:00:20]} Rxf2 {[%emt 0:02:12]} 19. Nxe4 {[%emt 0:00:54]} Rxg2 {[%emt 0:01:26]} 20. Ke1 {[%emt 0:16:33]} Nf5 {[%emt 0:06:09]} 21. Rd1 {[%emt 0:07:27]} e5 {[%emt 0:10:47]} 22. dxe5 {[%emt 0:06:07]} Nxe5 {[%emt 0:01:16]} 23. Bxe5 {[%emt 0:01:05]} Bxe5 {[%emt 0:00:03]} 24. Rd3 {[%emt 0:00:27]} Re8 {[%emt 0:06:08]} 25. Kf1 {[%emt 0:03:54]} Nh4 {[%emt 0:00:50]} 26. Re3 {[%emt 0:00:49]} Kg7 {[%emt 0:02:06]} 27. Ke1 {[%emt 0:01:50]} Bxb2 {[%emt 0:01:01]} 28. Kf1 {[%emt 0:00:31]} Ba3 {[%emt 0:01:26]} 29. Ke1 {[%emt 0:00:30]} Bc5 {[%emt 0:01:04]} 30. Kd2 {[%emt 0:00:27]} Bxe3+ {[%emt 0:00:17]} 31. Kxe3 {[%emt 0:00:06]} Rxe2+ {[%emt 0:00:18]} 32. Kd4 {[%emt 0:00:22]} 0-1

[Event "Karel Janecek Open 2024"]
[Site "Prague"]
[Date "2024.03.02"]
[Round "4.18"]
[White "Botez, Alexandra"]
[Black "Garcia Martinez, Marcos"]
[Result "0-1"]
[ECO "A40"]
[WhiteElo "1977"]
[BlackElo "2187"]
[Annotator "RC"]
[PlyCount "153"]
[EventDate "2024.02.22"]
[EventType "swiss"]
[EventCountry "CZE"]
[SourceTitle "playchess.com"]
[Source "ChessBase"]
[SourceQuality "1"]
[TimeControl "40/5400+30:1800+30"]

1. d4 {[%emt 0:00:02]} e6 {[%emt 0:00:08]} 2. c4 {[%emt 0:00:08]} Bb4+ {[%emt 0:00:17]} 3. Bd2 {[%emt 0:00:12]} Qe7 {[%emt 0:00:08]} 4. e4 {[%emt 0:00:10]} a5 {[%emt 0:01:28]} 5. a3 {[%emt 0:03:46]} Bxd2+ {[%emt 0:00:09]} 6. Nxd2 {[%emt 0:00:05]} d6 {[%emt 0:00:21]} 7. Ngf3 {[%emt 0:09:01]} e5 {[%emt 0:01:22]} 8. h3 {[%emt 0:02:10]} Nf6 {[%emt 0:04:43]} 9. Bd3 {[%emt 0:02:34]} O-O {[%emt 0:03:21]} 10. O-O {[%emt 0:00:43]} Nh5 {[%emt 0:08:45]} 11. Re1 {[%emt 0:04:57]} Nf4 {[%emt 0:00:43]} 12. Bf1 {[%emt 0:00:20]} a4 {[%emt 0:09:52]} 13. Nb1 {[%emt 0:00:58]} Nc6 {[%emt 0:05:34]} 14. d5 {[%emt 0:02:39]} Nb8 {[%emt 0:00:09]} 15. Nc3 {[%emt 0:00:34]} Bd7 {[%emt 0:01:00]} 16. Kh2 {[%emt 0:04:44]} Qf6 {[%emt 0:07:31]} 17. g3 {[%emt 0:13:50]} Ng6 {[%emt 0:00:06]} 18. Re3 {[%emt 0:00:51]} Ne7 {[%emt 0:07:24]} 19. Bd3 {[%emt 0:13:28]} Qh6 {[%emt 0:11:19]} 20. Nh4 {[%emt 0:02:15]} g6 {[%emt 0:09:03]} 21. Bc2 {[%emt 0:07:20]} f5 {[%emt 0:04:31]} 22. Kg2 {[%emt 0:06:44]} f4 {[%emt 0:01:00]} 23. Rf3 {[%emt 0:02:42]} Bxh3+ {[%emt 0:12:37]} 24. Kxh3 {[%emt 0:01:16]} g5 {[%emt 0:00:05]} 25. Kg2 {[%emt 0:01:35]} gxh4 {[%emt 0:00:06]} 26. Qh1 {[%emt 0:06:29]} fxg3 {[%emt 0:01:26]} 27. Rxf8+ {[%emt 0:04:26]} Qxf8 {[%emt 0:01:18]} 28. fxg3 {[%emt 0:00:35]} hxg3 {[%emt 0:00:20]} 29. Rf1 {[%emt 0:00:13]} Qg7 {[%emt 0:00:15]} 30. Qh3 {[%emt 0:02:19]} Qg6 {[%emt 0:00:53]} 31. Rf3 {[%emt 0:00:46]} Kh8 {[%emt 0:00:16]} 32. Qh4 {[%emt 0:03:40]} Qg7 {[%emt 0:00:51]} 33. Rxg3 {[%emt 0:00:33]} Ng6 {[%emt 0:00:13]} 34. Qd8+ {[%emt 0:00:33]} Qf8 {[%emt 0:00:05]} 35. Qxf8+ {[%emt 0:04:11]} Nxf8 {[%emt 0:00:06]} 36. Bxa4 {[%emt 0:00:31]} Ng6 {[%emt 0:01:20]} 37. Kf3 {[%emt 0:00:39]} Na6 {[%emt 0:00:26]} 38. Bd7 {[%emt 0:00:35]} Nc5 {[%emt 0:07:27]} 39. Bf5 {[%emt 0:00:08]} Nd3 {[%emt 0:02:05]} 40. Bxg6 {[%emt 0:01:05]} hxg6 {[%emt 0:00:06]} 41. Rxg6 {[%emt 0:30:33]} Nxb2 {[%emt 0:30:23]} 42. Nb5 {[%emt 0:00:00]} Rf8+ {[%emt 0:00:00]} 43. Kg4 {[%emt 0:00:00]} Rf7 {[%emt 0:00:00]} 44. c5 {[%emt 0:00:00]} dxc5 {[%emt 0:00:00]} 45. Re6 {[%emt 0:00:00]} Nc4 {[%emt 0:00:00]} 46. Re8+ {[%emt 0:00:00]} Kg7 {[%emt 0:00:00]} 47. Rc8 {[%emt 0:00:00]} Nd6 {[%emt 0:00:00]} 48. Nxd6 {[%emt 0:00:00]} cxd6 {[%emt 0:00:00]} 49. Kg5 {[%emt 0:00:00]} Rd7 {[%emt 0:00:00]} 50. Kf5 {[%emt 0:00:00]} Kf7 {[%emt 0:00:00]} 51. a4 {[%emt 0:00:00]} Ke7 {[%emt 0:00:00]} 52. Rh8 {[%emt 0:00:00]} Rc7 {[%emt 0:00:00]} 53. Rh7+ {[%emt 0:02:07]} Kd8 {[%emt 0:00:00]} 54. Rh6 {[%emt 0:00:47]} Rd7 {[%emt 0:00:00]} 55. Ke6 {[%emt 0:02:22]} Kc7 {[%emt 0:00:00]} 56. a5 {[%emt 0:00:19]} Rg7 {[%emt 0:00:00]} 57. Rf6 {[%emt 0:00:31]} Rh7 {[%emt 0:00:00]} 58. Rg6 {[%emt 0:00:14]} Rd7 {[%emt 0:00:00]} 59. Rg3 {[%emt 0:01:43]} Rh7 {[%emt 0:00:00]} 60. Ra3 {[%emt 0:01:28]} Rh6+ {[%emt 0:00:00]} 61. Ke7 {[%emt 0:00:11]} b5 {[%emt 0:00:00]} 62. axb6+ {[%emt 0:00:54]} Kxb6 {[%emt 0:00:00]} 63. Ra8 {[%emt 0:00:33]} Kb5 {[%emt 0:00:00]} 64. Rb8+ {[%emt 0:00:09]} Ka4 {[%emt 0:01:29]} 65. Rb6 {[%emt 0:00:26]} c4 {[%emt 0:00:15]} 66. Rc6 {[%emt 0:00:44]} Kb4 {[%emt 0:00:39]} 67. Rb6+ {[%emt 0:00:37]} Kc5 {[%emt 0:00:21]} 68. Rc6+ {[%emt 0:00:09]} Kd4 {[%emt 0:00:08]} 69. Rc8 {[%emt 0:00:44]} c3 {[%emt 0:00:12]} 70. Rc6 {[%emt 0:00:24]} Kxe4 {[%emt 0:00:34]} 71. Rxc3 {[%emt 0:00:06]} Kxd5 {[%emt 0:00:05]} 72. Ra3 {[%emt 0:00:27]} e4 {[%emt 0:00:16]} 73. Ra4 {[%emt 0:00:18]} e3 {[%emt 0:00:19]} 74. Ra5+ {[%emt 0:00:12]} Ke4 {[%emt 0:00:11]} 75. Ra4+ {[%emt 0:00:04]} Kf3 {[%emt 0:00:07]} 76. Ra3 {[%emt 0:00:08]} d5 {[%emt 0:00:10]} 77. Ra1 {[%emt 0:01:06]} 0-1

[Event "Karel Janecek Open 2024"]
[Site "Prague"]
[Date "2024.03.02"]
[Round "4.19"]
[White "Botez, Andrea"]
[Black "Tolhuizen, Ludo"]
[Result "1-0"]
[ECO "B06"]
[WhiteElo "1709"]
[BlackElo "1993"]
[Annotator "NA RC"]
[PlyCount "75"]
[EventDate "2024.02.22"]
[EventType "swiss"]
[EventCountry "CZE"]
[SourceTitle "playchess.com"]
[Source "ChessBase"]
[SourceQuality "1"]
[TimeControl "40/5400+30:1800+30"]

1. d4 {[%emt 0:00:11]} d6 {[%emt 0:00:00]} 2. Nc3 {[%emt 0:01:00]} g6 {[%emt 0:00:00]} 3. e4 {[%emt 0:00:34]} Bg7 {[%emt 0:00:00]} 4. Bf4 {[%emt 0:00:08]} Nd7 {[%emt 0:05:31]} 5. Qd2 {[%emt 0:04:02]} e5 {[%emt 0:01:02]} 6. dxe5 {[%emt 0:01:36]} dxe5 {[%emt 0:00:13]} 7. Bg5 {[%emt 0:00:34]} Ngf6 {[%emt 0:01:20]} 8. O-O-O {[%emt 0:01:18]} h6 {[%emt 0:03:24]} 9. Be3 {[%emt 0:04:21]} Ng4 {[%emt 0:06:51]} 10. Nf3 {[%emt 0:39:13]} Nxe3 {[%emt 0:00:53]} 11. fxe3 {[%emt 0:00:30]} O-O {[%emt 0:02:00]} 12. Bc4 {[%emt 0:00:43]} c6 {[%emt 0:06:15]} 13. Qd6 {[%emt 0:05:57]} Kh7 {[%emt 0:20:16]} 14. Rhf1 {[%emt 0:04:36]} Qb6 {[%emt 0:01:27]} 15. Nd2 {[%emt 0:16:41]} f6 {[%emt 0:04:46]} 16. Na4 {[%emt 0:05:04]} Qxe3 {[%emt 0:06:12]} 17. Rf3 {[%emt 0:01:02]} Qd4 {[%emt 0:04:03]} 18. Qe7 {[%emt 0:06:35]} a6 {[%emt 0:00:45]} 19. Rd3 {[%emt 0:01:25]} Qa7 {[%emt 0:01:14]} 20. Bf7 {[%emt 0:00:35]} Rxf7 {[%emt 0:08:17]} 21. Qxf7 {[%emt 0:00:06]} b5 {[%emt 0:00:07]} 22. Rg3 {[%emt 0:02:43]} Nf8 {[%emt 0:01:07]} 23. Qxa7 {[%emt 0:00:07]} Rxa7 {[%emt 0:00:08]} 24. Nc5 {[%emt 0:00:11]} Ne6 {[%emt 0:01:10]} 25. Ndb3 {[%emt 0:00:50]} Bf8 {[%emt 0:05:45]} 26. Nxe6 {[%emt 0:01:23]} Bxe6 {[%emt 0:00:06]} 27. Rc3 {[%emt 0:01:14]} Bc4 {[%emt 0:01:58]} 28. Na5 {[%emt 0:00:41]} Bb4 {[%emt 0:00:05]} 29. Nxc6 {[%emt 0:00:09]} Bxc3 {[%emt 0:00:12]} 30. Nxa7 {[%emt 0:00:05]} Bd4 {[%emt 0:00:06]} 31. Nc6 {[%emt 0:00:58]} Be3+ {[%emt 0:00:42]} 32. Kb1 {[%emt 0:00:03]} h5 {[%emt 0:00:16]} 33. Rd7+ {[%emt 0:00:28]} Kh6 {[%emt 0:00:00]} 34. Rd6 {[%emt 0:01:04]} Kg5 {[%emt 0:00:45]} 35. g3 {[%emt 0:00:27]} Bc5 {[%emt 0:01:21]} 36. h4+ {[%emt 0:00:12]} Kg4 {[%emt 0:00:01]} 37. Rxf6 {[%emt 0:00:22]} Kxg3 {[%emt 0:00:05]} 38. Nxe5 {[%emt 0:00:59]} 1-0

[Event "Karel Janecek Open 2024"]
[Site "Prague"]
[Date "2024.03.03"]
[Round "5.1"]
[White "Xiang, Zeyu"]
[Black "Stoyanov, Tsvetan"]
[Result "1-0"]
[ECO "D27"]
[WhiteElo "2418"]
[BlackElo "2465"]
[Annotator "TA"]
[PlyCount "119"]
[EventDate "2024.02.22"]
[EventType "swiss"]
[EventCountry "CZE"]
[SourceTitle "playchess.com"]
[Source "ChessBase"]
[SourceQuality "1"]
[TimeControl "40/5400+30:1800+30"]

{[%evp 42,119,32,11,95,82,129,104,108,113,106,108,208,189,218,218,233,240,240,218,226,213,218,214,214,214,222,233,250,240,248,247,380,364,371,361,395,360,394,156,156,164,179,106,110,110,113,128,125,110,120,134,252,260,336,325,424,523,522,503,493,517,498,496,766,624,750,1010,842,765,850,832,834,827,752,552,607,402,29973,29972]} 1. d4 {[%emt 0:00:04]} d5 {[%emt 0:00:37]} 2. c4 {[%emt 0:00:06]} dxc4 {[%emt 0:00:48]} 3. e3 {[%emt 0:00:14]} Nf6 {[%emt 0:00:15]} 4. Bxc4 {[%emt 0:00:17]} e6 {[%emt 0:00:12]} 5. Nf3 {[%emt 0:00:07]} c5 {[%emt 0:00:13]} 6. O-O {[%emt 0:00:09]} a6 {[%emt 0:00:14]} 7. Nc3 {[%emt 0:00:08]} b5 {[%emt 0:00:17]} 8. Be2 {[%emt 0:00:12]} Nbd7 {[%emt 0:00:19] D27: Queen's Gambit Accepted: Classical main line: 7 e4!? and 7 a4.} 9. d5 {[%emt 0:00:12]} exd5 {[%emt 0:00:08]} 10. Nxd5 {[%emt 0:00:05]} Bb7 {[%emt 0:00:11]} 11. Nxf6+ {[%emt 0:00:07]} Qxf6 {[%emt 0:00:06]} 12. a4 {[%emt 0:00:07]} b4 {[%emt 0:00:28]} 13. e4 {[%emt 0:00:08]} h6 {[%emt 0:00:56]} 14. Qc2 {[%emt 0:01:41]} Bd6 {[%emt 0:02:58]} 15. Be3 {[%emt 0:01:51]} O-O {[%emt 0:03:21]} 16. Rad1 {[%emt 0:00:19]} Rad8 {[%emt 0:09:56]} 17. Nd2 {[%emt 0:12:36]} Be5 $146 {[%emt 0:28:03]} ({Predecessor:} 17... Rfe8 18. f3 Be5 19. Nc4 Bd4 20. h3 Re7 21. Kh1 Ne5 22. Na5 Qb6 23. Nxb7 Rxb7 24. f4 {½-½ Jensen,B (2328)-Gerhards,G (2303) EU-ch 2021 sf13 email}) 18. Nc4 {[%emt 0:16:20]} Bd4 {[%emt 0:01:11]} 19. Na5 {[%emt 0:03:02]} Ba8 {[%emt 0:01:30]} 20. Bxd4 {[%emt 0:07:26]} cxd4 {[%emt 0:00:09]} 21. Nb3 {[%emt 0:00:33]} Nb6 {[%emt 0:08:34]} 22. a5 {[%emt 0:05:42]} Na4 {[%emt 0:19:37]} (22... d3 $1 $11 {remains equal.} 23. Bxd3 (23. Rxd3 Bxe4 24. axb6 Qg6 $17) 23... Na4) 23. Bd3 $1 $16 {[%emt 0:15:38]} Rfe8 {[%emt 0:04:07]} ({Black should try} 23... Rb8) 24. Rc1 {[%emt 0:01:35]} Qe6 {[%emt 0:04:21]} 25. f3 {[%emt 0:08:01]} Rc8 {[%emt 0:01:37]} 26. Bc4 $1 {[%emt 0:00:09]} Qd6 {[%emt 0:04:31]} (26... Qf6 $16) 27. Rfd1 $18 {[%emt 0:07:21]} d3 {[%emt 0:02:11]} 28. Qxd3 {[%emt 0:08:48]} Qf6 {[%emt 0:02:03]} 29. Bxa6 {[%emt 0:01:26]} Nxb2 {[%emt 0:01:59]} 30. Rxc8 {[%emt 0:03:02]} Rxc8 {[%emt 0:00:01]} 31. Qd6 {[%emt 0:00:23]} Qc3 {[%emt 0:04:10]} 32. Bxc8 {[%emt 0:00:48]} Nxd1 {[%emt 0:00:02]} 33. Qxd1 {[%emt 0:03:12]} (33. Qd8+ Kh7 34. Bf5+ g6 35. Bxg6+ (35. Qxd1 gxf5 36. Kf2 Qb2+ 37. Ke3 Qxg2 $15) 35... Kxg6 36. Qxd1 Bc6 $11) 33... Qxc8 {[%emt 0:00:05]} 34. Qd4 {[%emt 0:00:18]} Qc2 {[%emt 0:01:31]} 35. Qxb4 {[%emt 0:00:47]} Qb1+ {[%emt 0:00:26]} 36. Kf2 {[%emt 0:00:06]} Bc6 {[%emt 0:00:28]} (36... Qb2+ {was called for.} 37. Kg3 Qe5+ 38. Kf2 Qb2+ 39. Ke1 Qb1+ 40. Kd2 Qb2+ 41. Kd3 Kh7) 37. Qc3 {[%emt 0:00:48]} Bd7 {[%emt 0:00:46]} 38. Nd4 {[%emt 0:00:44]} Qa2+ {[%emt 0:00:34]} 39. Kg3 {[%emt 0:00:12]} h5 {[%emt 0:00:07]} 40. Qc7 $2 {[%emt 0:02:30]} (40. h4 $18 {and White stays clearly on top.}) 40... h4+ $16 {[%emt 0:00:22]} 41. Kf4 $1 {[%emt 0:30:48]} h3 {[%emt 0:18:51]} 42. Qd8+ {[%emt 0:00:00]} (42. Qxd7 $18 Qd2+ 43. Kg3 hxg2 44. Qc8+ Kh7 45. Qh3+ Kg8 46. Qxg2 (46. Qc8+ Kh7 $11) 46... Qxd4 47. Qa2) 42... Kh7 $16 {[%emt 0:00:05]} 43. gxh3 $1 {[%emt 0:00:00]} (43. Qxd7 $6 hxg2 44. Qh3+ Kg8 45. Qc8+ Kh7 46. Qh3+ Kg8 47. Qc8+ Kh7 48. Qh3+ $11) 43... Qxh2+ {[%emt 0:04:09]} 44. Ke3 {[%emt 0:00:00]} Qg1+ {[%emt 0:00:08]} 45. Kd3 {[%emt 0:00:00]} Bb5+ {[%emt 0:05:51] [#]} 46. Kc2 $1 {[%emt 0:00:00]} (46. Nxb5 $2 {loses.} Qd1+ 47. Kc3 Qxd8 $19) 46... Ba4+ {[%emt 0:01:57]} (46... Bf1 $16) 47. Kc3 $18 {[%emt 0:00:00]} Qc1+ {[%emt 0:02:32]} 48. Kb4 {[%emt 0:00:00]} Bd1 {[%emt 0:00:24]} 49. Qd5 {[%emt 0:00:00]} Qd2+ {[%emt 0:00:39]} 50. Kb5 {[%emt 0:00:00]} Qb2+ {[%emt 0:00:07]} 51. Kc5 {[%emt 0:00:00]} Qa3+ {[%emt 0:01:01]} 52. Kb6 {[%emt 0:00:00]} Qb4+ {[%emt 0:00:04]} (52... Qb2+ $142 53. Kc7 Qa3) 53. Nb5 $18 {[%emt 0:00:00]} Be2 {[%emt 0:00:27]} 54. a6 {[%emt 0:00:00]} Bxb5 {[%emt 0:00:20]} 55. Qxb5 {[%emt 0:00:00]} Qd6+ {[%emt 0:00:02]} 56. Kb7 {[%emt 0:00:00]} Qe7+ {[%emt 0:00:07]} 57. Kc8 {[%emt 0:00:00]} Qe6+ {[%emt 0:00:43]} 58. Kd8 {[%emt 0:00:00]} Qd6+ {[%emt 0:00:11] [#]} 59. Ke8 $1 {[%emt 0:00:00]} Kg8 {[%emt 0:02:23]} (59... Qe6+ $18 60. Kd8 Qd6+ 61. Kc8 Qe6+ 62. Kc7 Qe7+ 63. Qd7 Qc5+ 64. Qc6 Qe7+ 65. Kb8 Qf8+ 66. Qc8 Qd6+ 67. Ka8 Kh6) 60. a7 {[%emt 0:00:00]} 1-0

[Event "Karel Janecek Open 2024"]
[Site "Prague"]
[Date "2024.03.03"]
[Round "5.2"]
[White "Harshavardhan G B"]
[Black "Zhao, Yuanhe"]
[Result "1/2-1/2"]
[ECO "B28"]
[WhiteElo "2392"]
[BlackElo "2461"]
[Annotator "TA"]
[PlyCount "52"]
[EventDate "2024.02.22"]
[EventType "swiss"]
[EventCountry "CZE"]
[SourceTitle "playchess.com"]
[Source "ChessBase"]
[SourceQuality "1"]
[TimeControl "40/5400+30:1800+30"]

{[%evp 10,52,43,46,41,39,26,26,21,30,88,64,95,97,156,137,172,167,161,161,181,80,64,56,50,42,44,6,27,0,0,-16,-9,-8,-6,-15,-12,-13,-8,-11,-7,-11,-14,-10,-20]} 1. e4 {[%emt 0:00:13]} c5 {[%emt 0:01:29]} 2. Nf3 {[%emt 0:00:15]} a6 {[%emt 0:00:48]} 3. c4 {[%emt 0:00:24]} Nc6 {[%emt 0:00:41]} 4. d4 {[%emt 0:00:22]} cxd4 {[%emt 0:00:17]} 5. Nxd4 {[%emt 0:00:07]} e5 {[%emt 0:00:33]} 6. Nf5 {[%emt 0:01:04]} d5 {[%emt 0:00:28]} 7. cxd5 {[%emt 0:01:16]} ({But not} 7. Qxd5 Bxf5 8. exf5 (8. Qxd8+ Rxd8 9. exf5 Nb4 $15) 8... Qc7 $15) 7... Bxf5 {[%emt 0:00:08]} 8. exf5 {[%emt 0:00:37]} Nd4 {[%emt 0:00:06] White has an edge.} 9. Nc3 {[%emt 0:01:22][%cal Bb1c3,Bc3a4,Ba4b6][%mdl 32]} Bd6 {[%emt 0:07:59]} (9... Be7 $11 {keeps the balance.}) 10. Bd3 $16 {[%emt 0:01:51]} Qd7 {[%emt 0:06:44][%cal Og8e7]} 11. O-O {[%emt 0:07:07]} Nxf5 {[%emt 0:06:27]} (11... Ne7 $142) 12. Na4 {[%emt 0:04:34] And now Nb6 would win.} Rd8 {[%emt 0:00:39]} 13. Nb6 {[%emt 0:00:56]} Qc7 {[%emt 0:00:26]} 14. Qa4+ {[%emt 0:00:41]} Kf8 {[%emt 0:00:42] [#] Black is weak on the light squares} 15. Bxf5 {[%emt 0:00:46]} (15. Bd2 $1 $18 {is the precise move to win.} e4 16. Bxe4 (16. Qxe4 Bxh2+ 17. Kh1 Qxb6 $16) 16... Bxh2+ 17. Kh1 Qxb6 18. Kxh2 (18. Bxf5 Bd6 $18)) 15... Qxb6 {[%emt 0:00:06]} 16. Be3 {[%emt 0:00:17]} Qb5 {[%emt 0:07:17]} 17. Qxb5 {[%emt 0:04:18]} axb5 {[%emt 0:01:31]} 18. Bb6 {[%emt 0:00:22]} Ra8 {[%emt 0:00:10]} 19. Bd3 {[%emt 0:03:26]} b4 $1 {[%emt 0:00:10] The position is equal.} 20. Rfc1 {[%emt 0:04:50]} Nf6 {[%emt 0:01:03]} 21. Bc5 {[%emt 0:00:54]} Ke7 {[%emt 0:00:55][%cal Oh8c8,Bf8e7,Be7d6,Bd6d5][%mdl 32]} 22. Rc4 {[%emt 0:00:11]} Nxd5 {[%emt 0:07:07]} 23. Be4 {[%emt 0:05:18] A strong pair of Bishops.} Rhc8 {[%emt 0:00:38]} 24. Bxd6+ {[%emt 0:00:18]} Kxd6 {[%emt 0:00:04]} 25. Bxd5 {[%emt 0:00:06]} Kxd5 {[%emt 0:00:06]} 26. Rxb4 {[%emt 0:00:04][%cal Oa2a3] [#]} Rxa2 $1 {[%emt 0:01:33] Weighted Error Value: White=0.15 (very precise) /Black=0.13 (very precise) .  Mistake:       	White=1     	Black=2      Inaccurate:     	White=2     	Black=1      OK:         	White=6     	Black=8      Best:        	White=4     	Black=3      Strong:       	---       	Black=1} 1/2-1/2